Cogmind - Beta 10.2 @@@ ROGUE MODE // 2020.12.30 @ 11:51:32 // Winter2019/RPGLIKE Player: Hermelin Result: Destroyed by G-50 Soldier with Heavy Laser Performance ------------- Evolutions (5) 2500 Regions Visited (20) 4000 Robots Destroyed (363) 1815 Value Destroyed (13661) 13661 Prototype IDs (77) 1540 Alien Tech Used (0) 0 Bonus (5383) 5383 TOTAL SCORE: 28899 Bonus ------- High Alert Combat Kills 4611 Follower Combat Kills 1551 Entered Garrisons 600 Used RIF Installer 1500 Aligned with FarCom 300 Met Data Miner 300 Friendly Fire -3479 Cogmind --------- Core Integrity 0/1050 Matter 270/300 Energy 1042/1080 System Corruption 0% Temperature Cool (25) Movement Rolling (120) Ox3 Location -5/Garrison Parts ------- > --- POWER (3) -------- Cooled Ion Engine F-cell Engine F-cell Engine > --- PROPULSION (2) --- Armored Wheel Armored Wheel > --- UTILITY (11) ----- Advanced Heat Sink Experimental Heat Sink Experimental Sensor Array Long-range Terrain Scanner Experimental Targeting Computer Advanced Core Analyzer Advanced Weapon Cycler Damper Plating Relay Coupler [NC] (35) > --- WEAPON (3) ------- Arc Projector 01-MTF's Shockpuncher Advanced Remote Datajack > --- INVENTORY (8) ---- Advanced Power Amplifier Improved Energy Well (600) 8R-AWN's Armor/EX 8R-AWN's Boregun 8R-AWN's Boregun Master Tearclaws Peak State ------------ > --- POWER ------------ Cooled Ion Engine Cooled Ion Engine Cooled Ion Engine > --- PROPULSION ------- Armored Wheel Armored Wheel > --- UTILITY ---------- Experimental Heat Sink Experimental Sensor Array Modified TNC Experimental Targeting Computer Advanced Core Analyzer Centrium Light Armor Plating 8R-AWN's Armor/EX Sensor Drone Bay > --- WEAPON ----------- 01-MTF's Shockpuncher 8R-AWN's Boregun 8R-AWN's Boregun > --- INVENTORY -------- Protomatter Improved Energy Well Advanced Weapon Cycler Relay Coupler [NC] Firepult [Rating: 113] Favorites ----------- Power Cooled Ion Engine Engine Cooled Ion Engine Power Core Light Nuclear Core Propulsion Armored Wheel Wheel Armored Wheel Utility Experimental Sensor Array Device Experimental Sensor Array Storage Improved Energy Well Processor Advanced Core Analyzer Hackware Relay Coupler [NC] Protection 8R-AWN's Armor/EX Weapon 8R-AWN's Boregun Energy Gun Heavy EM Pulse Gun Energy Cannon Advanced Beam Cannon Ballistic Gun 8R-AWN's Boregun Ballistic Cannon Heavy Gauss Cannon Launcher Rocket Launcher Special Weapon Advanced Remote Datajack Piercing Weapon Plasma Lance Special Melee Weapon Datajack Build | -11 -10 -10 -9 -9 -9 -8 -8 -8 -8 -8 -8 -6 -6 -6 -6 -6 -6 -5 -5 -5 ------- Run | Scr Mat Min Mat Min Exi Min Mat Gar Sto Gar Rec Fac Was Fac Low Low Dat Pro Fac Gar Slots Evolved 15 | 3 4 . 4 . . . 1 . 1 . . . 1 . . . . 1 . . Power 2 | . 1 . 1 . . . . . . . . . . . . . . . . . Propulsion 1 | 1 . . . . . . . . . . . . . . . . . . . . Utility 10 | 1 3 . 2 . . . 1 . 1 . . . 1 . . . . 1 . . Weapon 2 | 1 . . 1 . . . . . . . . . . . . . . . . . Parts Attached 143 | 6 20 7 25 4 10 1 25 5 9 2 2 11 9 4 . . . 1 2 . Power 15 | 1 3 1 4 . . . . . . . . 3 . 3 . . . . . . Engine 13 | 1 3 . 4 . . . . . . . . 3 . 2 . . . . . . Core 2 | . . 1 . . . . . . . . . . . 1 . . . . . . Reactor . | . . . . . . . . . . . . . . . . . . . . . Propulsion 9 | 3 1 . 2 . . 1 2 . . . . . . . . . . . . . Treads . | . . . . . . . . . . . . . . . . . . . . . Leg . | . . . . . . . . . . . . . . . . . . . . . Wheel 9 | 3 1 . 2 . . 1 2 . . . . . . . . . . . . . Hover . | . . . . . . . . . . . . . . . . . . . . . Flight . | . . . . . . . . . . . . . . . . . . . . . Utility 69 | . 10 2 10 . 5 . 17 5 6 2 1 5 2 1 . . . 1 2 . Device 40 | . 5 2 4 . 2 . 12 3 1 1 . 5 1 1 . . . 1 2 . Storage 1 | . . . . . . . . . 1 . . . . . . . . . . . Processor 10 | . 3 . 4 . . . 2 . 1 . . . . . . . . . . . Hackware 4 | . 1 . . . . . . 1 . 1 1 . . . . . . . . . Protection 14 | . 1 . 2 . 3 . 3 1 3 . . . 1 . . . . . . . Artifact . | . . . . . . . . . . . . . . . . . . . . . Weapon 50 | 2 6 4 9 4 5 . 6 . 3 . 1 3 7 . . . . . . . Energy Gun 22 | . 4 2 4 . 1 . 6 . 2 . . 1 2 . . . . . . . Energy Cannon 2 | . . . 2 . . . . . . . . . . . . . . . . . Ballistic Gun 10 | 2 1 . 1 1 3 . . . . . . 2 . . . . . . . . Ballistic Cannon 1 | . . . . . . . . . . . . . 1 . . . . . . . Launcher 7 | . 1 2 1 3 . . . . . . . . . . . . . . . . Special Weapon 4 | . . . . . . . . . . . 1 . 3 . . . . . . . Impact Weapon . | . . . . . . . . . . . . . . . . . . . . . Slashing Weapon . | . . . . . . . . . . . . . . . . . . . . . Piercing Weapon 1 | . . . . . . . . . . . . . 1 . . . . . . . Special Melee Weapon 3 | . . . 1 . 1 . . . 1 . . . . . . . . . . . Unidentified Prototypes 8 | . . 1 2 . . . 2 . . . . 1 1 . . . . . 1 . Parts Lost 1 | . . . 1 . . . . . . . . . . . . . . . . . Power . | . . . . . . . . . . . . . . . . . . . . . Propulsion . | . . . . . . . . . . . . . . . . . . . . . Utility 1 | . . . 1 . . . . . . . . . . . . . . . . . Weapon . | . . . . . . . . . . . . . . . . . . . . . Highest Loss Streak 1 | . . . 1 . . . . . . . . . . . . . . . . . Average Slot Usage (%) 95 | . 97 99 99 100 97 93 97 99 97 94 94 92 84 85 88 88 88 87 89 89 Engine 16 | . 14 10 16 20 20 20 18 18 17 17 17 15 11 12 16 16 16 15 15 15 Wheel 13 | . 23 18 14 13 13 13 12 12 11 11 11 11 11 11 11 11 11 10 10 10 Device 23 | . 13 26 27 26 25 26 29 30 26 23 18 17 16 19 22 22 22 22 26 26 Processor 14 | . 12 9 15 13 10 6 15 18 20 17 17 17 16 13 11 11 11 10 10 10 Hackware 1 | . 1 . . . . . . . . . 3 5 5 5 5 5 5 5 5 5 Protection 5 | . 7 9 5 6 7 6 1 . 2 5 5 5 5 5 5 5 5 5 5 5 Energy Gun 8 | . 20 15 9 . 2 6 6 6 4 5 5 7 5 11 11 11 11 10 10 10 Ballistic Gun 5 | . 2 . 3 7 9 13 12 12 11 11 6 3 5 . . . . . . . Special Weapon 1 | . . . . . . . . . . . 3 5 4 5 5 5 5 5 5 5 Naked Turns . | . . . . . . . . . . . . . . . . . . . . . Heaviest Build 101 | 7 26 39 63 64 80 80 80 78 84 81 81 88 87 101 95 95 95 96 98 96 Greatest Support 32 | 32 20 20 22 22 22 24 24 24 24 24 24 24 24 24 24 24 24 24 24 24 Greatest Overweight (x) 4 | . 1 1 2 2 3 3 3 3 3 3 3 3 3 4 3 3 3 3 4 3 Average Overweight (x) 2 | . . 1 1 2 2 3 2 2 2 2 3 2 2 3 3 3 3 3 3 3 Largest Inventory Capacity 8 | 2 4 5 6 6 6 6 6 6 6 7 7 8 8 8 8 8 8 8 8 8 Average Capacity 5 | 2 3 4 5 6 6 6 6 6 6 6 7 7 8 8 8 8 8 8 8 8 Most Carried 8 | 2 4 5 6 6 6 6 6 6 6 7 7 8 8 8 8 8 8 8 8 8 Average Carried 5 | 1 2 4 5 5 5 6 5 5 5 6 7 7 7 7 6 7 8 8 7 8 Final Capacity 8 | 2 4 5 6 6 6 6 6 6 6 7 7 8 8 8 8 8 8 8 8 8 Final Carried 8 | 2 4 5 6 6 6 6 6 6 6 7 7 8 8 8 8 8 8 8 8 8 Class Distribution -------------------- 33% | Scavenger-Mutant 14% | Scavenger-Gunner 14% | Hacker-Gunner 12% | Hacker-Mutant 7% | Mutant 6% | Commander-Mutant 6% | Scavenger-Skirmisher 3% | Hacker-Skirmisher Dominant Class ---------------- Mutant | -10/Materials Scavenger-Mutant | -10/Mines Hacker-Gunner | -9/Materials Hacker-Mutant | -9/Mines Hacker-Mutant | -9/Exiles Scavenger-Mutant | -8/Mines Scavenger-Gunner | -8/Materials Scavenger-Mutant | -8/Garrison Scavenger-Gunner | -8/Storage Scavenger-Gunner | -8/Garrison Commander-Mutant | -8/Recycling Scavenger-Mutant | -6/Factory Scavenger-Mutant | -6/Waste Scavenger-Mutant | -6/Factory Scavenger-Mutant | -6/Lower Caves Scavenger-Skirmisher | -6/Lower Caves Scavenger-Skirmisher | -6/Data Miner Scavenger-Skirmisher | -5/Proximity Caves Scavenger-Mutant | -5/Factory Scavenger-Skirmisher | -5/Garrison Resources | -11 -10 -10 -9 -9 -9 -8 -8 -8 -8 -8 -8 -6 -6 -6 -6 -6 -6 -5 -5 -5 ----------- Run | Scr Mat Min Mat Min Exi Min Mat Gar Sto Gar Rec Fac Was Fac Low Low Dat Pro Fac Gar Matter Collected 6160 | 428 227 163 562 218 463 . 1901 252 697 573 99 166 193 30 70 . . 40 . 78 Remotely . | . . . . . . . . . . . . . . . . . . . . . Salvage Created 15106 | 303 1108 156 4040 348 276 14 3076 527 1140 1145 302 1599 322 . . 140 . 392 . 218 Parts 925 | 19 72 14 274 29 28 . 195 30 68 65 14 59 10 4 . 14 . 9 . 21 Haulers Intercepted 14 | . 2 . 6 . . . 5 . . . . 1 . . . . . . . . Recyclers Shooed 8 | . 2 1 2 . . 1 1 . . . . 1 . . . . . . . . Parts Field Recycled . | . . . . . . . . . . . . . . . . . . . . . Retrieved Matter . | . . . . . . . . . . . . . . . . . . . . . Parts Self-Destructed 30 | . . . . . . . . . . . . . . . 14 . . 16 . . Prevented 7 | . . . . . . . . . . . . . . . 4 . . 3 . . Kills | -11 -10 -10 -9 -9 -9 -8 -8 -8 -8 -8 -8 -6 -6 -6 -6 -6 -6 -5 -5 -5 ------- Run | Scr Mat Min Mat Min Exi Min Mat Gar Sto Gar Rec Fac Was Fac Low Low Dat Pro Fac Gar Combat Hostiles Destroyed 268 | . 23 10 78 14 7 . 50 15 17 22 1 16 . 1 1 3 . 3 . 7 Guns 185 | . 14 4 46 3 2 . 48 13 16 21 1 11 . . . 1 . 2 . 3 Cannons 21 | . . . 20 1 . . . . . . . . . . . . . . . . AOE 52 | . 7 6 11 10 5 . 2 2 1 1 . 2 . . . 1 . 1 . 3 Classes Destroyed 19 | 3 5 1 5 . 1 . 2 . . 1 . . . . 1 . . . . . Worker 16 | 1 1 1 4 2 . . 5 . 2 . . . . . . . . . . . Builder 18 | . . . 9 . . . 3 . 4 . . 2 . . . . . . . . Tunneler 14 | 9 2 1 . . . . 2 . . . . . . . . . . . . . Hauler 14 | . 2 . 6 . . . 5 . . . . 1 . . . . . . . . Recycler 12 | 1 3 . 2 . . . 2 . 1 . 1 2 . . . . . . . . Mechanic 2 | . . . . . . . 1 . 1 . . . . . . . . . . . Operator 9 | . 1 . 3 . . . 2 . 1 . . 2 . . . . . . . . Drone 2 | . . . . . . . . . . 2 . . . . . . . . . . Turret 1 | . . . . . 1 . . . . . . . . . . . . . . . Watcher 13 | . 3 . 5 . . . 3 . 2 . . . . . . . . . . . Swarmer 38 | . 3 6 3 7 . . 2 7 3 5 . 1 . . . . . 1 . . Grunt 166 | . 20 2 58 6 . . 31 7 8 11 1 14 . . . . . 1 . 7 Brawler 6 | . . . 1 . . . 2 . 1 . . 1 . . . . . 1 . . Duelist 7 | . . . 3 1 . . 2 . 1 . . . . . . . . . . . Protector 3 | . . . 3 . . . . . . . . . . . . . . . . . Sentry 31 | . . . 10 . . . 10 1 4 4 . . . 1 . . . 1 . . Hunter 5 | . . . . . . . 3 . . 2 . . . . . . . . . . Master Thief 4 | . . . . . . . . . . . . . . . 1 3 . . . . Assembled 10 | . . 3 . . 7 . . . . . . . . . . . . . . . Surgeon 1 | . . . . . . . . . . . . . . . . . . . . 1 Thug 2 | . . . . . . . . . . . . 1 . . . 1 . . . . Best Kill Streak 16 | 5 5 4 11 4 5 . 16 10 6 7 1 6 . 1 1 3 . 1 . 4 Combat Bots Only 10 | . 4 3 8 4 5 . 7 10 5 7 1 6 . 1 1 3 . 1 . 4 Max Kills in Single Turn 5 | 1 2 3 2 2 3 . 3 2 5 2 1 2 . 1 1 2 . 2 . 2 Gunslinging 1 | . 1 . . . 1 . 1 . 1 1 . . . . . . . . . . Exploded 3 | . 1 2 2 2 3 . 1 1 1 1 . 1 . . . 1 . 1 . 1 Melee . | . . . . . . . . . . . . . . . . . . . . . Uniques/NPCs Destroyed 2 | . . . . . 2 . . . . . . . . . . . . . . . 8R-AWN (-9/Exiles) EX-DEC (-9/Exiles) Combat | -11 -10 -10 -9 -9 -9 -8 -8 -8 -8 -8 -8 -6 -6 -6 -6 -6 -6 -5 -5 -5 -------- Run | Scr Mat Min Mat Min Exi Min Mat Gar Sto Gar Rec Fac Was Fac Low Low Dat Pro Fac Gar Damage Taken 10639 | . 385 282 2193 255 653 . 1395 161 302 696 74 1131 . 11 304 221 . 245 188 2143 Core 6863 | . 290 188 1594 175 472 . 952 125 221 373 50 685 . 4 176 140 . 119 103 1196 Absorbed by Shields 1106 | . . . 86 96 237 . 532 62 90 . 3 . . . . . . . . . Redirected to Core 5861 | . 193 143 1353 163 415 . 755 115 207 373 29 513 . 4 176 117 . 119 103 1083 Core Remaining (%) 85 | 100 . 100 . . . 40 . . . . 95 . . . . . . 94 . . Volleys Fired 990 | 28 157 28 213 27 55 11 142 26 55 59 11 81 10 3 17 7 1 18 12 29 Largest 3 | 2 2 2 3 3 3 1 3 3 3 3 3 2 1 2 2 2 1 2 1 2 Hottest 136 | 40 90 90 136 114 91 45 105 105 110 110 110 105 50 105 105 105 50 105 55 105 Shots Fired 2034 | 56 310 43 497 44 124 11 385 65 130 102 13 126 10 6 18 14 1 21 12 46 Gun 1849 | 56 307 37 384 17 119 11 385 65 130 102 10 119 6 6 13 14 . 19 6 43 Cannon 123 | . . . 108 15 . . . . . . . . . . . . . . . . Launcher 31 | . 3 6 5 12 5 . . . . . . . . . . . . . . . Special 31 | . . . . . . . . . . . 3 7 4 . 5 . 1 2 6 3 Kinetic 765 | 56 10 . 89 17 78 . 274 42 96 81 6 16 . . . . . . . . Thermal 123 | . . . 108 15 . . . . . . . . . . . . . . . . Explosive 31 | . 3 6 5 12 5 . . . . . . . . . . . . . . . Electromagnetic 1084 | . 297 37 295 . 41 11 111 23 34 21 4 103 6 6 13 14 . 19 6 43 Robot Hit Streak 33 | 6 9 8 33 8 24 . 18 5 13 9 8 27 11 8 7 5 3 11 8 18 Robot Miss Streak 6 | 2 6 2 3 2 2 1 5 3 3 4 2 4 1 1 2 4 . 1 1 1 Penetration Max 2 | . . . . . . . 2 1 2 1 . 2 . . . . . . . . Secondary Targets 20 | . 2 . 1 . 1 . 8 2 4 2 . . . . . . . . . . Max Gunslinging Chain 2 | . 1 . 1 . 1 . 2 1 2 1 . . . . . . . . . . Shots Hit Robots 1161 | 29 65 15 281 22 108 . 239 27 95 52 11 106 10 5 14 10 1 20 11 40 Core Hits 672 | 12 39 23 140 21 39 . 140 26 61 33 5 73 5 . 5 8 . 13 5 24 Critical Hits 171 | . . . 4 3 5 . 69 18 34 24 3 11 . . . . . . . . Critical Kills 56 | . . . 1 . 1 . 28 8 9 5 2 2 . . . . . . . . Critical Parts Destroyed 100 | . . . 3 3 3 . 36 9 19 17 1 9 . . . . . . . . Melee Attacks 8 | . . . 1 . 5 . . . 2 . . . . . . . . . . . Impact . | . . . . . . . . . . . . . . . . . . . . . Slashing . | . . . . . . . . . . . . . . . . . . . . . Piercing . | . . . . . . . . . . . . . . . . . . . . . Sneak Attacks 8 | . . . 1 . 5 . . . 2 . . . . . . . . . . . Combat Hostiles . | . . . . . . . . . . . . . . . . . . . . . Follow-up Attacks . | . . . . . . . . . . . . . . . . . . . . . Damage Inflicted 27632 | 404 1393 873 6173 1001 1630 . 5197 788 2389 1519 173 3009 299 147 223 543 . 452 61 1358 Guns 19816 | 404 1098 178 3669 140 1127 . 4503 621 1983 1443 173 2597 299 147 223 109 . 274 53 775 Cannons 1455 | . . . 1285 170 . . . . . . . . . . . . . . . . Explosions 6347 | . 295 695 1219 691 503 . 688 167 406 76 . 412 . . . 434 . 178 . 583 Melee . | . . . . . . . . . . . . . . . . . . . . . Ramming 14 | . . . . . . . 6 . . . . . . . . . . . 8 . Kinetic 7950 | 404 103 . 580 140 1002 . 2888 432 1271 786 83 261 . . . . . . . . Thermal 5531 | . 152 193 2106 170 . . 688 167 372 76 . 412 . . . 434 . 178 . 583 Explosive 2182 | . 54 502 398 691 503 . . . 34 . . . . . . . . . . . Electromagnetic 11955 | . 1084 178 3089 . 125 . 1615 189 712 657 90 2336 299 147 223 109 . 274 53 775 Impact . | . . . . . . . . . . . . . . . . . . . . . Slashing . | . . . . . . . . . . . . . . . . . . . . . Piercing . | . . . . . . . . . . . . . . . . . . . . . Highest Corruption 3 | . 2 2 . . . . 2 2 3 3 3 2 2 2 2 2 2 2 . . Average Corruption 2 | . 1 2 . . . . 2 2 2 3 3 2 2 2 2 2 2 2 . . Corruption Purged . | . . . . . . . . . . . . . . . . . . . . . Effects 117 | . 13 7 . . . . 22 6 11 20 14 2 5 4 4 3 1 5 . . Message Errors 42 | . 2 2 . . . . 8 1 4 8 6 2 2 3 1 2 . 1 . . Matter Fused 11 | . . . . . . . . . 2 5 4 . . . . . . . . . Heat Flow Errors 18 | . 2 2 . . . . 5 2 1 1 2 . 1 . . 1 1 . . . Energy Discharges 13 | . 3 . . . . . 2 1 1 2 2 . 1 . . . . 1 . . Data Loss (minor) 15 | . 2 3 . . . . 1 1 1 1 . . . 1 3 . . 2 . . Targeting Errors 15 | . 3 . . . . . 6 1 1 3 . . 1 . . . . . . . Weapon Failures 3 | . 1 . . . . . . . 1 . . . . . . . . 1 . . Overload Shots . | . . . . . . . . . . . . . . . . . . . . . Overflow Damage 166 | . . 10 46 . 18 . 39 . . . . 41 . . . 12 . . . . Projectiles 29 | . . . 29 . . . . . . . . . . . . . . . . . Explosions 137 | . . 10 17 . 18 . 39 . . . . 41 . . . 12 . . . . Melee . | . . . . . . . . . . . . . . . . . . . . . Knockbacks . | . . . . . . . . . . . . . . . . . . . . . Impact . | . . . . . . . . . . . . . . . . . . . . . Kinetic . | . . . . . . . . . . . . . . . . . . . . . Secondary . | . . . . . . . . . . . . . . . . . . . . . Self-Inflicted Damage 1337 | . 90 77 385 146 7 . 188 54 74 40 . 103 . . . 136 . . 4 33 Shots 36 | . 3 2 9 4 1 . 5 1 3 2 . 3 . . . 2 . . . 1 Rammed 2 | . . . . . . . 1 . . . . . . . . . . . 1 . Targets Rammed 2 | . . . . . . . 1 . . . . . . . . . . . 1 . Kicked . | . . . . . . . . . . . . . . . . . . . . . Crushed . | . . . . . . . . . . . . . . . . . . . . . Highest Temperature 466 | 6 262 249 18 . . . 179 86 160 44 113 466 246 48 119 111 201 102 8 179 Average Temperature 75 | 6 65 125 6 . . . 54 41 51 8 41 121 75 25 31 59 94 32 7 54 Received Heat Transfer 3090 | . 132 47 800 38 . . 486 36 102 198 25 330 . 6 9 9 . 92 27 753 Effects 5 | . . . . . . . . . . . . 5 . . . . . . . . Shutdowns 2 | . . . . . . . . . . . . 2 . . . . . . . . Interference 2 | . . . . . . . . . . . . 2 . . . . . . . . Short Circuit 1 | . . . . . . . . . . . . 1 . . . . . . . . Siege Activations . | . . . . . . . . . . . . . . . . . . . . . Robots Corrupted 12 | . 2 . 1 . 1 . . . . . . 3 . 1 1 1 . 1 . 1 Combat Hostiles 11 | . 2 . 1 . 1 . . . . . . 3 . 1 1 1 . . . 1 Parts Fried 64 | . 8 . 14 . . . 4 . 9 2 . 16 . 2 2 3 . 2 . 2 Impact Corruptions . | . . . . . . . . . . . . . . . . . . . . . Robots Melted . | . . . . . . . . . . . . . . . . . . . . . Combat Hostiles . | . . . . . . . . . . . . . . . . . . . . . Parts Melted 4 | . 1 . 2 . . . . . . . . . . . . 1 . . . . Heat Transferred 7119 | . 250 300 3173 296 . . 850 200 500 150 . 350 . . . 400 . 200 . 450 Parts Sabotaged . | . . . . . . . . . . . . . . . . . . . . . Parts Stolen 2 | . . . . . . . . . . . . . . . 1 1 . . . . Parts Stripped . | . . . . . . . . . . . . . . . . . . . . . Power Chain Reactions 40 | . 3 2 6 . . . 10 2 4 2 . 4 . . . 2 . 1 . 4 Missiles Intercepted . | . . . . . . . . . . . . . . . . . . . . . Alert | -11 -10 -10 -9 -9 -9 -8 -8 -8 -8 -8 -8 -6 -6 -6 -6 -6 -6 -5 -5 -5 ------- Run | Scr Mat Min Mat Min Exi Min Mat Gar Sto Gar Rec Fac Was Fac Low Low Dat Pro Fac Gar Peak Influence 2309 | 55 949 627 2309 1117 . 60 945 971 1144 1849 919 1673 546 665 . . . . 209 260 Initial 1222 | . 35 369 187 900 . . . 547 473 603 831 1222 546 235 . . . . 187 6 Average 858 | 24 513 512 1359 1032 . 32 615 790 812 1346 753 1415 485 497 . . . . 173 108 Maximum Alert Level 5 | . 3 2 5 4 . . 3 3 4 5 3 5 2 2 . . . . 1 1 Low Security (%) 11 | 100 19 . . . . 100 8 . . . . . . . . . . . 86 83 Level 1 6 | . 17 9 3 . . . 5 . . . . . 27 36 . . . . 13 16 Level 2 23 | . 33 90 7 . . . 42 23 31 2 31 . 72 63 . . . . . . Level 3 32 | . 29 . 28 99 . . 42 76 61 22 68 . . . . . . . . . Level 4 13 | . . . 18 . . . . . 7 44 . 80 . . . . . . . . Level 5 12 | . . . 41 . . . . . . 31 . 19 . . . . . . . . High Security . | . . . . . . . . . . . . . . . . . . . . . Max Security . | . . . . . . . . . . . . . . . . . . . . . Squads Dispatched 57 | . 10 . 18 . . . 11 . 4 . 2 10 . 2 . . . . . . Investigation 29 | . 10 . 9 . . . 7 . . . . 1 . 2 . . . . . . Extermination 1 | . . . . . . . . . . . . 1 . . . . . . . . Reinforcement 16 | . . . 4 . . . 1 . 3 . 2 6 . . . . . . . . Assault 8 | . . . 5 . . . . . 1 . . 2 . . . . . . . . Garrison 3 | . . . . . . . 3 . . . . . . . . . . . . . Intercept . | . . . . . . . . . . . . . . . . . . . . . Construction Impeded 7 | . . . 1 . . . 1 . 1 . 2 2 . . . . . . . . Haulers Reinforced 1 | . . . . . . . . . . . . 1 . . . . . . . . Stealth | -11 -10 -10 -9 -9 -9 -8 -8 -8 -8 -8 -8 -6 -6 -6 -6 -6 -6 -5 -5 -5 --------- Run | Scr Mat Min Mat Min Exi Min Mat Gar Sto Gar Rec Fac Was Fac Low Low Dat Pro Fac Gar Distress Signals 13 | . . 1 2 . . . 5 . 3 . . 2 . . . . . . . . Communications Jammed . | . . . . . . . . . . . . . . . . . . . . . Distress Signals . | . . . . . . . . . . . . . . . . . . . . . Times Spotted 455 | . 27 13 108 13 19 . 69 15 30 36 21 54 1 3 14 4 . 10 2 16 Peak Tracking Total 10 | . 3 3 7 4 8 . 9 8 4 9 4 8 1 2 6 4 . 4 1 10 Tactical Retreats 40 | . 1 . 9 1 5 . 2 1 2 9 1 7 . . . . . . . 2 Traps | -11 -10 -10 -9 -9 -9 -8 -8 -8 -8 -8 -8 -6 -6 -6 -6 -6 -6 -5 -5 -5 ------- Run | Scr Mat Min Mat Min Exi Min Mat Gar Sto Gar Rec Fac Was Fac Low Low Dat Pro Fac Gar Traps Triggered 24 | . . . 1 . . . 2 8 1 7 . 3 . . . . . . . 2 Indirectly . | . . . . . . . . . . . . . . . . . . . . . Trap Hack Attempts . | . . . . . . . . . . . . . . . . . . . . . Triggered . | . . . . . . . . . . . . . . . . . . . . . Disarmed . | . . . . . . . . . . . . . . . . . . . . . Reprogrammed . | . . . . . . . . . . . . . . . . . . . . . Reused . | . . . . . . . . . . . . . . . . . . . . . Traps Extracted . | . . . . . . . . . . . . . . . . . . . . . Installed . | . . . . . . . . . . . . . . . . . . . . . Triggered . | . . . . . . . . . . . . . . . . . . . . . Machines | -11 -10 -10 -9 -9 -9 -8 -8 -8 -8 -8 -8 -6 -6 -6 -6 -6 -6 -5 -5 -5 ---------- Run | Scr Mat Min Mat Min Exi Min Mat Gar Sto Gar Rec Fac Was Fac Low Low Dat Pro Fac Gar Machines Disabled 126 | . 33 10 23 6 7 4 14 2 7 10 2 1 . 2 . . . 4 . 1 Max in Single Turn 3 | . 3 1 3 2 2 1 3 1 1 2 . 1 . . . . . . . 1 Garrison Relay 7 | . . . . . . . . 2 . 4 . . . . . . . . . 1 Phase Generator 1 | . . . . . . . . . . 1 . . . . . . . . . . Machines Sabotaged 2 | . 2 . . . . . . . . . . . . . . . . . . . Garrisons Compromised . | . . . . . . . . . . . . . . . . . . . . . Overloaded Fab Kills . | . . . . . . . . . . . . . . . . . . . . . Fab Network Shutdowns . | . . . . . . . . . . . . . . . . . . . . . Hacking | -11 -10 -10 -9 -9 -9 -8 -8 -8 -8 -8 -8 -6 -6 -6 -6 -6 -6 -5 -5 -5 --------- Run | Scr Mat Min Mat Min Exi Min Mat Gar Sto Gar Rec Fac Was Fac Low Low Dat Pro Fac Gar Machines Accessed 74 | . 11 1 10 . 2 . 16 . 5 . 10 8 . 3 . . 4 . 4 . Terminals 39 | . 8 . 6 . . . 10 . 3 . 6 4 . . . . . . 2 . Fabricators 2 | . . . . . . . . . . . . 1 . 1 . . . . . . Repair Stations 6 | . 1 . 1 . . . 2 . . . . 1 . 1 . . . . . . Recycling Units 9 | . 2 . 1 . . . 1 . 1 . 4 . . . . . . . . . Scanalyzers 8 | . . . 2 . . . 2 . . . . 2 . 1 . . . . 1 . Garrison Access 3 | . . . . . . . 1 . 1 . . . . . . . . . 1 . Total Hacks 285 | . 45 1 41 . 2 . 74 . 13 . 33 22 . 13 . . 25 . 16 . Successful 190 | . 33 1 25 . 2 . 50 . 11 . 17 9 . 9 . . 25 . 8 . Failed 93 | . 11 . 16 . . . 23 . 2 . 16 13 . 4 . . . . 8 . Catastrophic 16 | . 2 . 4 . . . 4 . . . 4 1 . . . . . . 1 . Database Lockouts 2 | . 1 . . . . . 1 . . . . . . . . . . . . . Manual 137 | . 30 . 24 . 1 . 43 . 6 . 20 8 . 3 . . . . 2 . Terminals 161 | . 39 . 25 . . . 47 . 7 . 25 12 . . . . . . 6 . Fabricators 7 | . . . . . . . . . . . . 3 . 4 . . . . . . Repair Stations 16 | . 1 . 3 . . . 5 . . . . 2 . 5 . . . . . . Recycling Units 19 | . 5 . 2 . . . 2 . 2 . 8 . . . . . . . . . Scanalyzers 46 | . . . 11 . . . 17 . . . . 5 . 4 . . . . 9 . Garrison Access 8 | . . . . . . . 3 . 4 . . . . . . . . . 1 . Terminal Hacks 77 | . 13 1 7 . 2 . 16 . 5 . 4 3 . . . . 25 . 1 . Record 12 | . . . . . 1 . . . . . . . . . . . 11 . . . Part Schematic 11 | . . . . . . . 2 . . . 1 1 . . . . 7 . . . Robot Schematic 5 | . 1 . . . . . . . . . . . . . . . 4 . . . Robot Analysis 8 | . 2 . 4 . . . 1 . . . 1 . . . . . . . . . Prototype ID Bank 12 | . 3 . . . . . 6 . . . . . . . . . 3 . . . Open Door 2 | . . 1 . . . . . . 1 . . . . . . . . . . . Branch Access Points 2 | . . . 1 . . . 1 . . . . . . . . . . . . . Terminal Index 2 | . . . . . . . 1 . . . . 1 . . . . . . . . Alert Level 3 | . 1 . . . . . 1 . 1 . . . . . . . . . . . Unreport Threat 8 | . . . . . . . 4 . 2 . 2 . . . . . . . . . Locate Traps 5 | . 1 . 1 . . . . . 1 . . 1 . . . . . . 1 . Dispatch Records 1 | . 1 . . . . . . . . . . . . . . . . . . . Hauler Manifests 1 | . . . 1 . . . . . . . . . . . . . . . . . Registered Components 1 | . 1 . . . . . . . . . . . . . . . . . . . Zone Layout 3 | . 3 . . . . . . . . . . . . . . . . . . . EX-Prototype ID Bank 1 | . . . . . 1 . . . . . . . . . . . . . . . Fabricator Hacks 4 | . . . . . . . . . . . . 2 . 2 . . . . . . Load Schematic 2 | . . . . . . . . . . . . 1 . 1 . . . . . . Build 2 | . . . . . . . . . . . . 1 . 1 . . . . . . Repair Station Hacks 7 | . . . 2 . . . 3 . . . . . . 2 . . . . . . Scan Component 4 | . . . 1 . . . 2 . . . . . . 1 . . . . . . Repair 3 | . . . 1 . . . 1 . . . . . . 1 . . . . . . Recycling Unit Hacks 10 | . 3 . 1 . . . 1 . 1 . 4 . . . . . . . . . Report Inventory 8 | . 2 . 1 . . . 1 . . . 4 . . . . . . . . . Retrieve Components 2 | . 1 . . . . . . . 1 . . . . . . . . . . . Scanalyzer 34 | . . . 9 . . . 16 . . . . 1 . 2 . . . . 6 . Insert Component 16 | . . . 5 . . . 7 . . . . 1 . 1 . . . . 2 . Analyze 18 | . . . 4 . . . 9 . . . . . . 1 . . . . 4 . Garrison Access Hacks 3 | . . . . . . . 1 . 1 . . . . . . . . . 1 . Unlock Access 3 | . . . . . . . 1 . 1 . . . . . . . . . 1 . Unauthorized Hacks 55 | . 17 . 6 . . . 13 . 4 . 9 3 . 3 . . . . . . Terminals 35 | . 14 . 4 . . . 9 . 1 . 5 2 . . . . . . . . Track 8 | . 3 . . . . . 4 . . . 1 . . . . . . . . . Assimilate 2 | . 2 . . . . . . . . . . . . . . . . . . . Botnet 13 | . 2 . 2 . . . 4 . 1 . 2 2 . . . . . . . . Operators 3 | . 1 . 1 . . . 1 . . . . . . . . . . . . . Sabotage 5 | . 5 . . . . . . . . . . . . . . . . . . . Search 4 | . 1 . 1 . . . . . . . 2 . . . . . . . . . Fabricators 2 | . . . . . . . . . . . . . . 2 . . . . . . Prioritize 1 | . . . . . . . . . . . . . . 1 . . . . . . Siphon 1 | . . . . . . . . . . . . . . 1 . . . . . . Repair Stations 4 | . 1 . . . . . 1 . . . . 1 . 1 . . . . . . Mechanics 4 | . 1 . . . . . 1 . . . . 1 . 1 . . . . . . Recycling Units 8 | . 2 . 1 . . . 1 . . . 4 . . . . . . . . . Tunnel 8 | . 2 . 1 . . . 1 . . . 4 . . . . . . . . . Scanalyzers 1 | . . . 1 . . . . . . . . . . . . . . . . . Extract 1 | . . . 1 . . . . . . . . . . . . . . . . . Garrison Access 5 | . . . . . . . 2 . 3 . . . . . . . . . . . Broadcast 2 | . . . . . . . 1 . 1 . . . . . . . . . . . Reprogram 2 | . . . . . . . 1 . 1 . . . . . . . . . . . Intercept 1 | . . . . . . . . . 1 . . . . . . . . . . . Data Cores Recovered 3 | . 1 . . . . . 2 . . . . . . . . . . . . . Used 1 | . 1 . . . . . . . . . . . . . . . . . . . Hacking Detections 47 | . 6 . 8 . . . 12 . 3 . 6 8 . 1 . . . . 3 . Full Trace Events 12 | . 1 . 3 . . . 5 . . . 1 1 . 1 . . . . . . Feedback Events 1 | . 1 . . . . . . . . . . . . . . . . . . . Corruption 1 | . 1 . . . . . . . . . . . . . . . . . . . Feedback Blocked . | . . . . . . . . . . . . . . . . . . . . . Robot Schematics Acquired 5 | . 1 . . . . . . . . . . . . . . . 4 . . . Robots Built 1 | . . . . . . . . . . . . 1 . . . . . . . . Matter 153 | . . . . . . . . . . . . 153 . . . . . . . . Time 40 | . . . . . . . . . . . . 40 . . . . . . . . Total Robot Build Rating 1 | . . . . . . . . . . . . 1 . . . . . . . . Part Schematics Acquired 35 | . . . 15 . . . 9 . . . 1 1 . . . . 7 . 2 . Parts Built 1 | . . . . . . . . . . . . . . 1 . . . . . . Matter 139 | . . . . . . . . . . . . . . 139 . . . . . . Time 99 | . . . . . . . . . . . . . . 99 . . . . . . Total Part Build Rating 2 | . . . . . . . . . . . . . . 2 . . . . . . Parts Repaired 2 | . . . . . . . 1 . . . . . . 1 . . . . . . Time 244 | . . . 50 . . . 95 . . . . . . 99 . . . . . . Parts Recycled . | . . . . . . . . . . . . . . . . . . . . . Recycled Matter . | . . . . . . . . . . . . . . . . . . . . . Retrieved Matter . | . . . . . . . . . . . . . . . . . . . . . Retrieved Components 10 | . 5 . . . . . . . 5 . . . . . . . . . . . Parts Scanalyzed 15 | . . . 4 . . . 7 . . . . 1 . 1 . . . . 2 . Part Schematics Acquired 13 | . . . 4 . . . 7 . . . . . . . . . . . 2 . Parts Damaged 2 | . . . . . . . 1 . . . . . . . . . . . 1 . Bothacking | -11 -10 -10 -9 -9 -9 -8 -8 -8 -8 -8 -8 -6 -6 -6 -6 -6 -6 -5 -5 -5 ------------ Run | Scr Mat Min Mat Min Exi Min Mat Gar Sto Gar Rec Fac Was Fac Low Low Dat Pro Fac Gar Used RIF Installer 3 | . . . . . . . . 1 . 1 . . . . . . . . . 1 Patrol Navigation 1 | . . . . . . . . . . 1 . . . . . . . . . . Alert ID Control 1 | . . . . . . . . . . . . . . . . . . . . 1 Robots Hacked 19 | . . . 1 . 5 . . . 1 . 3 2 1 . 1 . 1 1 3 . Non-combat 12 | . . . 1 . 3 . . . . . 3 2 . . . . . . 3 . Combat 7 | . . . . . 2 . . . 1 . . . 1 . 1 . 1 1 . . Robot Hacks Applied 21 | . . . 1 . 5 . . . 2 . 3 2 2 . 1 . 1 1 3 . parse_system 13 | . . . 1 . 5 . . . 2 . 1 . . . 1 . 1 1 1 . start_evac 1 | . . . . . . . . . . . 1 . . . . . . . . . find_chute 1 | . . . . . . . . . . . . 1 . . . . . . . . map_walls 1 | . . . . . . . . . . . . . . . . . . . 1 . randomize_corridors 1 | . . . . . . . . . . . . . . . . . . . 1 . ignore_parts 1 | . . . . . . . . . . . 1 . . . . . . . . . block_reporting 1 | . . . . . . . . . . . . 1 . . . . . . . . ignore_targets 1 | . . . . . . . . . . . . . 1 . . . . . . . amplify_resonance 1 | . . . . . . . . . . . . . 1 . . . . . . . Relay Couplers Released 11 | . . . . . . . . 4 . 6 . . . . . . . . . 1 Machine Destruction 11 | . . . . . . . . 4 . 6 . . . . . . . . . 1 Attached 3 | . . . . . . . . 1 . 1 1 . . . . . . . . . Robots Rewired 23 | . . . . . . . . . . 4 11 4 . . 1 . . 1 1 1 Allies Hacked 2 | . . . . . . . . . . . . 2 . . . . . . . . Hacks Repelled . | . . . . . . . . . . . . . . . . . . . . . Allies | -11 -10 -10 -9 -9 -9 -8 -8 -8 -8 -8 -8 -6 -6 -6 -6 -6 -6 -5 -5 -5 -------- Run | Scr Mat Min Mat Min Exi Min Mat Gar Sto Gar Rec Fac Was Fac Low Low Dat Pro Fac Gar Total Allies 57 | . 1 3 . 2 . . 1 . 2 4 11 8 20 . 1 . . 2 1 1 Largest Group 20 | . 1 3 . 2 2 . 1 1 2 4 15 11 20 17 14 11 10 11 6 6 Highest-Rated Group 767 | . 10 40 . 49 49 . 15 15 99 68 212 157 767 650 533 423 377 471 241 233 Highest-Rated Ally 99 | . 10 16 . 31 31 . 15 15 99 21 24 31 50 50 50 46 46 94 94 75 Total Orders 28 | . . . 9 1 8 . 1 . . 1 4 4 . . . . . . . . STAY 1 | . . . . . 1 . . . . . . . . . . . . . . . ROAM 1 | . . . . . 1 . . . . . . . . . . . . . . . FOLLOW 3 | . . . . . 3 . . . . . . . . . . . . . . . AID 3 | . . . . . . . . . . . . 3 . . . . . . . . PICKUP 4 | . . . . . . . . . . . 4 . . . . . . . . . EXPLORE 1 | . . . 1 . . . . . . . . . . . . . . . . . RETURN 15 | . . . 8 1 3 . 1 . . 1 . 1 . . . . . . . . Ally Attacks 610 | . . 15 . 9 . . . . 19 17 267 50 14 67 66 38 . 27 2 19 Total Damage 10615 | . . 178 . 167 . . . . 577 149 1876 930 620 1897 1879 856 . 1081 28 377 Kills 97 | . . 1 . 2 . . . . 7 2 39 11 1 11 12 1 . 8 . 2 Allies Corrupted 1 | . . . . . . . . . . . . . . . . . . 1 . . Allies Melted . | . . . . . . . . . . . . . . . . . . . . . Intel | -11 -10 -10 -9 -9 -9 -8 -8 -8 -8 -8 -8 -6 -6 -6 -6 -6 -6 -5 -5 -5 ------- Run | Scr Mat Min Mat Min Exi Min Mat Gar Sto Gar Rec Fac Was Fac Low Low Dat Pro Fac Gar Robot Analysis Total 8 | . 2 . 4 . . . 1 . . . 1 . . . . . . . . . Derelict Logs Recovered 6 | . . 1 . 1 . . . . . . . . . . 3 1 . . . . Drone Launches 71 | . . 2 13 1 33 . 3 1 4 4 . 10 . . . . . . . . Drone Recoveries 64 | . . 1 13 1 30 . 4 1 3 1 . 10 . . . . . . . . Exploration | -11 -10 -10 -9 -9 -9 -8 -8 -8 -8 -8 -8 -6 -6 -6 -6 -6 -6 -5 -5 -5 ------------- Run | Scr Mat Min Mat Min Exi Min Mat Gar Sto Gar Rec Fac Was Fac Low Low Dat Pro Fac Gar Turns Passed 17601 | 277 1778 603 2985 970 1654 414 2080 410 689 967 858 1253 551 340 391 236 123 383 446 193 Spaces Moved 11306 | 172 1232 474 1469 694 1299 340 1297 213 390 589 575 789 410 171 280 158 98 280 291 85 Core 2 | 2 . . . . . . . . . . . . . . . . . . . . Treads . | . . . . . . . . . . . . . . . . . . . . . Legs . | . . . . . . . . . . . . . . . . . . . . . Wheels 11304 | 170 1232 474 1469 694 1299 340 1297 213 390 589 575 789 410 171 280 158 98 280 291 85 Hover . | . . . . . . . . . . . . . . . . . . . . . Flight . | . . . . . . . . . . . . . . . . . . . . . Fastest Speed 50 | 50 80 90 90 105 105 115 110 110 110 110 120 110 100 120 120 120 120 120 120 120 Average Speed 107 | 83 84 90 99 105 108 115 111 110 114 119 120 119 115 123 120 120 120 120 120 120 Slowest Speed 130 | 100 90 90 105 105 115 120 120 120 120 120 120 120 120 130 120 120 120 120 130 120 Overloaded Moves . | . . . . . . . . . . . . . . . . . . . . . Propulsion Burnouts . | . . . . . . . . . . . . . . . . . . . . . Robots Hopped 1 | . . . . . . . 1 . . . . . . . . . . . . . Cave-ins Triggered . | . . . . . . . . . . . . . . . . . . . . . Exploration Rate (%) 64 | 5 99 96 99 99 92 82 98 48 64 84 95 28 96 7 56 33 73 52 10 33 Regions Visited 20 Branch Regions 10 Pre-discovered Areas 10 | . 2 . 1 . 1 . 1 . . . 4 . . . . . 1 . . . Known Exits Taken 11 | . . 1 1 1 1 1 1 . 1 . 1 . . . 1 . . 1 1 . Unknown Exits Taken 5 | 1 1 . . . . . . . . . . . . 1 . 1 1 . . . Scrap Searched 6 | . . 1 . 1 . 1 . . . . . . . . 2 1 . . . . Spaces Dug . | . . . . . . . . . . . . . . . . . . . . . Terrain Destroyed 1100 | . 173 56 164 160 25 . 152 13 71 225 1 26 . . . 20 . 4 . 10 Melee . | . . . . . . . . . . . . . . . . . . . . . Projectile 111 | . . . . . 2 . 58 2 40 8 1 . . . . . . . . . AOE 989 | . 173 56 164 160 23 . 94 11 31 217 . 26 . . . 20 . 4 . 10 Terrain Rammed . | . . . . . . . . . . . . . . . . . . . . . Walls Destroyed . | . . . . . . . . . . . . . . . . . . . . . Machines Disabled . | . . . . . . . . . . . . . . . . . . . . . Actions | -11 -10 -10 -9 -9 -9 -8 -8 -8 -8 -8 -8 -6 -6 -6 -6 -6 -6 -5 -5 -5 --------- Run | Scr Mat Min Mat Min Exi Min Mat Gar Sto Gar Rec Fac Was Fac Low Low Dat Pro Fac Gar Total 15257 | 248 1665 605 2565 893 1459 357 1726 357 564 794 737 1022 486 297 329 197 103 316 386 151 Wait 1827 | 36 192 77 699 150 43 5 118 31 67 20 79 58 24 96 17 26 5 9 69 6 Move 11283 | 171 1231 473 1468 693 1298 339 1294 211 389 587 574 789 409 170 279 157 97 279 290 85 Hop 1 | . . . . . . . 1 . . . . . . . . . . . . . Pick Up 97 | 7 13 1 21 1 21 . 6 2 7 1 1 3 3 4 2 3 . . 1 . Fast Attach 63 | . 11 3 11 . 2 . 13 4 4 2 . 4 5 2 . . . 1 1 . Attach 29 | 5 1 . 5 . 3 . 9 1 2 . . . 1 2 . . . . . . Detach 12 | . . . 2 . . . 8 1 . . . . . 1 . . . . . . Swap 51 | 1 8 4 9 4 5 1 3 . 3 . 2 7 3 . . . . . 1 . Drop 147 | . 20 3 28 2 26 1 20 6 10 2 1 9 10 4 . 3 . . 2 . Fire 990 | 28 157 28 213 27 55 11 142 26 55 59 11 81 10 3 17 7 1 18 12 29 Melee 8 | . . . 1 . 5 . . . 2 . . . . . . . . . . . Ram 2 | . . . . . . . 1 . . . . . . . . . . . 1 . Kick . | . . . . . . . . . . . . . . . . . . . . . Crush . | . . . . . . . . . . . . . . . . . . . . . Escape Stasis 128 | . . . . . . . . 64 . 48 . . . . . . . . . 16 Rewire 122 | . . . . . . . . . . 53 67 2 . . . . . . . . Trap . | . . . . . . . . . . . . . . . . . . . . . Miscellaneous 497 | . 32 16 108 16 1 . 111 11 25 22 2 69 21 15 14 1 . 9 9 15 Route ------- -11/Scrapyard -10/Materials (discovered 4 exits: *Mat x3 / *Min) -10/Mines (discovered 2 exits: *Mat x2) -9/Materials (discovered 5 exits: *Mat x3 / *Min x2) -9/Mines (discovered 4 exits: *Mat x2 / *Exi / *Zio) -9/Exiles (discovered 2 exits: *Min x2) -8/Mines (discovered 2 exits: *Mat x2) -8/Materials (discovered 6 exits: *Fac x3 / *Sto x2 / Gar) -8/Garrison -8/Storage (discovered 2 exits: *Fac / Gar) -8/Garrison (discovered 2 exits: *Rec x2) -8/Recycling -6/Factory -6/Waste -6/Factory -6/Lower Caves -6/Lower Caves (discovered 2 exits: Fac / *Dat) -6/Data Miner -5/Proximity Caves -5/Factory -5/Garrison History --------- Turn | Location | Event 1 | -11/Scrapyard | Upgraded with Propulsion slot (x1) 1 | -11/Scrapyard | Upgraded with Utility slot (x1) 1 | -11/Scrapyard | Upgraded with Weapon slot (x1) 13 | -11/Scrapyard | Discovered new exit (range 16) 278 | -11/Scrapyard | Entered Materials 331 | -10/Materials | Build established: Mutant 360 | -10/Materials | Discovered new exit (range 3) 365 | -10/Materials | Discovered new exit (range 15) 477 | -10/Materials | Discovered new exit (range 8) 626 | -10/Materials | Central database locked down 750 | -10/Materials | Reached level 2 753 | -10/Materials | Upgraded with Utility slot (x1) 780 | -10/Materials | Discovered new exit (range 10) 1049 | -10/Materials | Reached level 3 1052 | -10/Materials | Upgraded with Utility slot (x1) 1526 | -10/Materials | Reached level 4 1529 | -10/Materials | Upgraded with Power slot (x1) 1803 | -10/Materials | Build established: Scavenger-Mutant 1964 | -10/Materials | Reached level 5 1966 | -10/Materials | Upgraded with Utility slot (x1) 2056 | -10/Materials | Entered Mines 2062 | -10/Mines | Found the Drone Emporium 2067 | -10/Mines | Found Prototype Device 2067 | -10/Mines | Identified Sensor Drone Bay 2080 | -10/Mines | Assembled infested the area 2090 | -10/Mines | Assisted by bots powering up and referring to "LRC-V3" 2099 | -10/Mines | Learned location of 1 exit from Materials 2212 | -10/Mines | Discovered new exit (range 14) 2249 | -10/Mines | Reached level 6 2562 | -10/Mines | Found a damaged Exp. Sensor Array with a note attached 2563 | -10/Mines | Found Prototype Device 2622 | -10/Mines | Discovered new exit (range 3) 2626 | -10/Mines | Identified exit to Materials 2659 | -10/Mines | Entered Materials 2659 | -9/Materials | Accompanied by 1 ally 2660 | -9/Materials | Identified exit to Mines 2661 | -9/Materials | Reached level 7 2766 | -9/Materials | Core integrity fell below 50% 2785 | -9/Materials | Reached level 8 2797 | -9/Materials | Upgraded with Utility slot (x1) 2966 | -9/Materials | Discovered exit to Mines (range 12) 3082 | -9/Materials | Identified Exp. Sensor Array 3097 | -9/Materials | Reached level 9 3100 | -9/Materials | Upgraded with Utility slot (x1) 3432 | -9/Materials | Discovered new exit (range 12) 3459 | -9/Materials | First assault squad dispatched 3478 | -9/Materials | Identified exit to Materials 3570 | -9/Materials | Build established: Hacker-Skirmisher 3943 | -9/Materials | Reached level 10 3946 | -9/Materials | Upgraded with Power slot (x1) 3946 | -9/Materials | Upgraded with Weapon slot (x1) 4206 | -9/Materials | Discovered exit to Materials (range 16) 4281 | -9/Materials | Destroyed 8 combat bots 4515 | -9/Materials | Build established: Hacker-Gunner 5088 | -9/Materials | Reached level 11 5149 | -9/Materials | Destroyed 8 combat bots 5192 | -9/Materials | Discovered exit to Materials (range 17) 5644 | -9/Materials | Entered Mines 5644 | -9/Mines | Accompanied by 1 ally 5663 | -9/Mines | Learned Materials terminal intel 5795 | -9/Mines | Received a Rocket Launcher from a helpful Derelict 5806 | -9/Mines | Deemed a non-threat by the Exiles lab entrance 5807 | -9/Mines | Discovered new exit (range 5) 5830 | -9/Mines | Identified exit to Exiles 5899 | -9/Mines | A Derelict revealed a hidden shortcut to a safe place 5904 | -9/Mines | Identified exit to Zion 5950 | -9/Mines | Build established: Hacker-Mutant 6040 | -9/Mines | Discovered exit to Materials (range 8) 6052 | -9/Mines | Discovered exit to Materials (range 12) 6614 | -9/Mines | Entered Exiles 6614 | -9/Exiles | Accompanied by 3 allies 6628 | -9/Exiles | Discovered new exit (range 16) 6644 | -9/Exiles | Led the pair of lost Derelicts to a safe place 6693 | -9/Exiles | Met 8R-AWN 6731 | -9/Exiles | Identified exit to Mines 6773 | -9/Exiles | Met EX-HEX 6813 | -9/Exiles | Met EX-DEC 6857 | -9/Exiles | Visited The Gauntlet 6966 | -9/Exiles | Learned location of Zion (-7) 6991 | -9/Exiles | Met EX-BIN 7124 | -9/Exiles | Discovered exit to Mines (range 14) 7243 | -9/Exiles | Aligned with FarCom system 7244 | -9/Exiles | Given EX-Vault access code 7269 | -9/Exiles | Opened EX-Vault 7294 | -9/Exiles | Warned to stay clear of 0b10 Research branches 7548 | -9/Exiles | Attacked by the Exiles 7654 | -9/Exiles | Destroyed 8R-AWN 7660 | -9/Exiles | Found 8R-AWN's Boregun 7674 | -9/Exiles | Found 8R-AWN's Boregun 7682 | -9/Exiles | Found 8R-AWN's Armor/EX 7688 | -9/Exiles | Found Exp. Targeting Computer 7882 | -9/Exiles | Destroyed EX-DEC 8145 | -9/Exiles | Found Firepult 8151 | -9/Exiles | Found Modified TNC 8186 | -9/Exiles | Build established: Scavenger-Mutant 8268 | -9/Exiles | Stole two prototypes: Modified TNC, Firepult 8268 | -9/Exiles | Entered Mines 8268 | -8/Mines | Accompanied by 1 ally 8270 | -8/Mines | Reached level 12 8296 | -8/Mines | Discovered exit to Materials (range 4) 8333 | -8/Mines | Discovered exit to Materials (range 10) 8682 | -8/Mines | Entered Materials 8682 | -8/Materials | Accompanied by 1 ally 8683 | -8/Materials | Loaded intel: 12 terminal locations 8683 | -8/Materials | Core integrity fell below 50% 8720 | -8/Materials | Identified exit to Storage 8875 | -8/Materials | Reached level 13 9051 | -8/Materials | Destroyed 7 combat bots 9184 | -8/Materials | Discovered new exit (range 5) 9201 | -8/Materials | Identified exit to Factory 9421 | -8/Materials | Build established: Hacker-Gunner 9517 | -8/Materials | Upgraded with Utility slot (x1) 9677 | -8/Materials | Repaired Broken Adv. Weapon Cycler 9953 | -8/Materials | Reached level 14 10007 | -8/Materials | Discovered exit to Factory (range 6) 10014 | -8/Materials | Build established: Scavenger-Gunner 10365 | -8/Materials | Central database locked down 10534 | -8/Materials | Garrison activated, responded to threat 10625 | -8/Materials | Discovered exit to Factory (range 7) 10697 | -8/Materials | Identified exit to Garrison 10762 | -8/Materials | Entered Garrison 10762 | -8/Garrison | Accompanied by 1 ally 10768 | -8/Garrison | Installed Relay Interface Framework 10812 | -8/Garrison | Triggered checkpoint 10860 | -8/Garrison | Garrison Relay disabled 11010 | -8/Garrison | Destroyed 10 combat bots 11038 | -8/Garrison | Triggered checkpoint 11088 | -8/Garrison | Triggered checkpoint 11102 | -8/Garrison | Garrison Relay disabled 11158 | -8/Garrison | Discovered exit to Storage (range 11) 11172 | -8/Garrison | Entered Storage 11174 | -8/Storage | Reached level 15 11178 | -8/Storage | Upgraded with Utility slot (x1) 11320 | -8/Storage | Met 01-MTF 11545 | -8/Storage | Found 01-MTF's Shockpuncher 11572 | -8/Storage | First assault squad dispatched 11689 | -8/Storage | Identified exit to Garrison 11689 | -8/Storage | Discovered exit to Factory (range 16) 11861 | -8/Storage | Entered Garrison 11861 | -8/Garrison | Accompanied by 1 ally 11881 | -8/Garrison | Phase Generator disabled 11949 | -8/Garrison | Garrison Relay disabled 11964 | -8/Garrison | Triggered checkpoint 12012 | -8/Garrison | Triggered checkpoint 12080 | -8/Garrison | Triggered checkpoint 12080 | -8/Garrison | Destroyed 7 combat bots 12135 | -8/Garrison | Discovered new exit (range 15) 12290 | -8/Garrison | Discovered new exit (range 8) 12300 | -8/Garrison | Identified exit to Recycling 12304 | -8/Garrison | Expanded RIF knowledge: Watcher Feeds 12334 | -8/Garrison | Triggered checkpoint 12399 | -8/Garrison | Garrison Relay disabled 12447 | -8/Garrison | Build established: Scavenger-Mutant 12527 | -8/Garrison | Garrison Relay disabled 12530 | -8/Garrison | Triggered checkpoint 12556 | -8/Garrison | Triggered checkpoint 12560 | -8/Garrison | Reached level 16 12579 | -8/Garrison | Garrison Relay disabled 12828 | -8/Garrison | Entered Recycling 12828 | -8/Recycling | Accompanied by 5 allies 12831 | -8/Recycling | Build established: Scavenger-Gunner 12877 | -8/Recycling | Spotter reported a threat 12881 | -8/Recycling | Spotter reported a threat 12894 | -8/Recycling | Spotter reported a threat 12912 | -8/Recycling | Spotter reported a threat 12913 | -8/Recycling | Spotter reported a threat 12916 | -8/Recycling | Spotter reported a threat 12925 | -8/Recycling | Spotter reported a threat 12930 | -8/Recycling | Spotter reported a threat 12934 | -8/Recycling | Spotter reported a threat 12947 | -8/Recycling | Spotter reported a threat 12952 | -8/Recycling | Spotter reported a threat 12966 | -8/Recycling | Spotter reported a threat 13000 | -8/Recycling | Spotter reported a threat 13005 | -8/Recycling | Spotter reported a threat 13022 | -8/Recycling | Spotter reported a threat 13079 | -8/Recycling | Spotter reported a threat 13119 | -8/Recycling | Spotter reported a threat 13119 | -8/Recycling | Spotter reported a threat 13146 | -8/Recycling | Spotter reported a threat 13159 | -8/Recycling | Spotter reported a threat 13159 | -8/Recycling | Spotter reported a threat 13163 | -8/Recycling | Spotter reported a threat 13213 | -8/Recycling | Spotter reported a threat 13229 | -8/Recycling | Spotter reported a threat 13291 | -8/Recycling | Build established: Commander-Mutant 13307 | -8/Recycling | Spotter reported a threat 13307 | -8/Recycling | Spotter reported a threat 13326 | -8/Recycling | Spotter reported a threat 13339 | -8/Recycling | Spotter reported a threat 13360 | -8/Recycling | Spotter reported a threat 13380 | -8/Recycling | Spotter reported a threat 13381 | -8/Recycling | Spotter reported a threat 13409 | -8/Recycling | Spotter reported a threat 13422 | -8/Recycling | Spotter reported a threat 13422 | -8/Recycling | Spotter reported a threat 13432 | -8/Recycling | Discovered new exit (range 12) 13434 | -8/Recycling | Spotter reported a threat 13465 | -8/Recycling | Spotter reported a threat 13465 | -8/Recycling | Spotter reported a threat 13465 | -8/Recycling | Spotter reported a threat 13524 | -8/Recycling | Spotter reported a threat 13524 | -8/Recycling | Spotter reported a threat 13525 | -8/Recycling | Spotter reported a threat 13577 | -8/Recycling | Spotter reported a threat 13578 | -8/Recycling | Spotter reported a threat 13582 | -8/Recycling | Spotter reported a threat 13618 | -8/Recycling | Spotter reported a threat 13618 | -8/Recycling | Spotter reported a threat 13620 | -8/Recycling | Spotter reported a threat 13620 | -8/Recycling | Spotter reported a threat 13641 | -8/Recycling | Identified exit to Factory 13686 | -8/Recycling | Entered Factory 13686 | -6/Factory | Accompanied by 12 allies 13688 | -6/Factory | Reached level 17 14036 | -6/Factory | First assault squad dispatched 14127 | -6/Factory | Fabricated M-13 Machinist (x1) 14172 | -6/Factory | Reached level 18 14434 | -6/Factory | Allied Derelicts emerged from ambush trap array 14462 | -6/Factory | Build established: Scavenger-Mutant 14631 | -6/Factory | Reached level 19 14850 | -6/Factory | Discovered new exit (range 7) 14901 | -6/Factory | Identified exit to Factory 14939 | -6/Factory | Sucked down chute 14939 | -6/Factory | Entered Waste 14940 | -6/Waste | Joined by Warlord forces that had cleared the area 15155 | -6/Waste | Found Damper Plating 15168 | -6/Waste | Upgraded with Utility slot (x1) 15190 | -6/Waste | A Compactor rumbled back to life 15190 | -6/Waste | Spotted C-40 Crusher 15191 | -6/Waste | Allies destroyed C-40 Crusher 15228 | -6/Waste | Discovered new exit (range 13) 15490 | -6/Waste | Entered Factory 15490 | -6/Factory | Accompanied by 17 allies 15655 | -6/Factory | Repaired Plasma Lance? 15668 | -6/Factory | Discovered new exit (range 23) 15756 | -6/Factory | Fabricated Cld. Ion Engine (x1) 15830 | -6/Factory | Entered Lower Caves 15830 | -6/Lower Caves | Accompanied by 14 allies 15830 | -6/Lower Caves | Spotted S6-RGH(f) 15831 | -6/Lower Caves | Encountered a Master Thief 15832 | -6/Lower Caves | Destroyed S6-RGH(f) 15833 | -6/Lower Caves | Spotted LT-44W(f) 15834 | -6/Lower Caves | Encountered a Master Thief 15837 | -6/Lower Caves | Firepult stolen by Master Thief 15963 | -6/Lower Caves | Identified exit to Lower Caves 15993 | -6/Lower Caves | Reached level 20 16052 | -6/Lower Caves | Learned 4 Factory zone layouts 16221 | -6/Lower Caves | Entered another Lower Caves area 16221 | -6/Lower Caves | Accompanied by 11 allies 16228 | -6/Lower Caves | Discovered exit to Factory (range 21) 16317 | -6/Lower Caves | Spotted GU-VV3(f) 16318 | -6/Lower Caves | Discovered new exit (range 14) 16318 | -6/Lower Caves | Encountered a Master Thief 16319 | -6/Lower Caves | Spotted 1J-QTQ(f) 16320 | -6/Lower Caves | Encountered a Master Thief 16324 | -6/Lower Caves | Destroyed 1J-QTQ(f) 16328 | -6/Lower Caves | Spotted PM-9ZC(f) 16329 | -6/Lower Caves | Encountered a Master Thief 16329 | -6/Lower Caves | Spotted Z6-4PS(f) 16330 | -6/Lower Caves | Encountered a Master Thief 16330 | -6/Lower Caves | 8R-AWN's Armor/EX stolen by Master Thief 16334 | -6/Lower Caves | Destroyed Z6-4PS(f) 16336 | -6/Lower Caves | Destroyed PM-9ZC(f) 16457 | -6/Lower Caves | Entered Data Miner 16457 | -6/Data Miner | Accompanied by 10 allies 16457 | -6/Data Miner | Discovered new exit (range 6) 16479 | -6/Data Miner | Met Data Miner 16508 | -6/Data Miner | Learned location of Section 7 (-2) 16508 | -6/Data Miner | Acquired the access code to Warlord's prototype stash 16526 | -6/Data Miner | Received God Mode back door access code from Data Miner 16580 | -6/Data Miner | Entered Proximity Caves 16580 | -5/Proximity Caves | Accompanied by 10 allies 16661 | -5/Proximity Caves | Attracted the attention of an 0b10 checkpoint 16662 | -5/Proximity Caves | Escorted by Enhanced Grunt 16747 | -5/Proximity Caves | Reached level 21 16749 | -5/Proximity Caves | Upgraded with Utility slot (x1) 16896 | -5/Proximity Caves | Discovered exit to Factory (range 22) 16911 | -5/Proximity Caves | Attracted the attention of an 0b10 base 16963 | -5/Proximity Caves | Entered Factory 16963 | -5/Factory | Accompanied by 6 allies 16965 | -5/Factory | Reached level 22 16969 | -5/Factory | Build established: Scavenger-Skirmisher 17359 | -5/Factory | Identified exit to Garrison 17409 | -5/Factory | Entered Garrison 17409 | -5/Garrison | Accompanied by 6 allies 17415 | -5/Garrison | Expanded RIF knowledge: Alert ID Control 17474 | -5/Garrison | Garrison Relay disabled 17546 | -5/Garrison | Triggered checkpoint 17552 | -5/Garrison | Spotted B-75 Beast 17583 | -5/Garrison | Core integrity fell below 50% 17593 | -5/Garrison | Core integrity fell below 20% 17602 | -5/Garrison | Destroyed by G-50 Soldier with Heavy Laser Last Messages --------------- 17572_ Chain reaction triggered in Unknown Engine. 17573_ Knocked back. 17574_ NT-25K(m) destroyed. 17579_ B-75 Beast misfires. 17579_ G-50 Soldier knocked back. 17581_ 9F-B83(m) destroyed. 17581_ Chain reaction triggered in Lgt. Angular Momentum Engine. 17581_ Hvy. Laser fried. 17581_ G-50 Soldier destroyed. 17581_ I8-HRL(m) destroyed. 17582_ Knocked back. 17583_ Chain reaction triggered in Lgt. Angular Momentum Engine. 17583_ G-50 Soldier destroyed. 17586_ G-50 Soldier shuts down. 17588_ Attempting to rewire G-50 Soldier. 17588_ Knocked back. 17589_ G-50 Soldier rewired. 17591_ G-50 Soldier misfires. 17595_ Knocked back. 17598_ G-50 Soldier destroyed. Map ----- +----------------------------------------------------+ | #####" ##### ## ################???????????? | | # ##### ! ##### ## ################???????????? | | ### #####" ##### ## ######?##########??????????? | | ### #####"# ##### ## ################ ????????? | | ### #######"##### ## ################ #?????????? | | ### ##?#### ## ################ #?#???????? | | ### ####### ######## ###################?#??????? | | ### #######"######## ############## ???????? | | ### ^ ######## ??????? | | ### ^ ######## ????? | | ################ ######## ######## ###?##????? | | ################ ### #### ######## ####### ??? | | ################ ### #### ######## ######? ??? | | ################ ### # ######## ####?##???? | | ################ ### #### ######## # ? ?? | | ################ " #### ######## ####### ?? | | ################ %### #### ## ## ###?### #? | | ###############" !"## #### ## ## ######? ??? | | ###############"! ="##### g ####?##? #? | | ###############[*=[= =! # #? | | ###############%! == !!!% = # ? #? | | #########################g% = ## ########?## | | ################ ######## [ % g ## ##########? | | ####################### % ! " #######?? | | ####################### =! BB ######### | | ####################### [@*% BB "?#?######? | | ####################### == " ########? | | ######################### ## g ## ##########? | | #########################=%g## ## #####??#?#? | | ############### ! ? ? ?#? | | ############### ?? | | ############### ######## ##???## ?? | | ############### #########;### ""## ##### ?#???? | | ############### ######### ### ## ?#### ?# ?? | | ############### ######### ######### ##### #? ??? | | ############### ######### ######### ###?# #? ??? | | ##?############? # ######### ?# ?##???? | | ##?############ ################### ####? #???? | | ??#?#?######### ################### ##??#?#????? | | ???#?#?######## ################### ##???#?????? | | ???##???####### ################### ? ????????? | | ????#####?##### ############?####?# ????????? | | ?????????? ? #####################???????????? | | ??????????? ? # ##?######??????##?#??????????? | | ???????????#?# #??? ######?#?#??#?####???????????? | | ???????????????#?#? ?#?##??#########?????????????? | | ?????????????????## #????#??#?###?#??????????????? | | ??????????????????? #?#?#""??"#??????????????????? | | ?????????????????????????#???????????????????????? | | ?????????????????????????????????????????????????? | +----------------------------------------------------+ Best States ------------- Heat Dissipation 88 Energy Generation 47 Energy Capacity 1300 Matter Stores 300 Matter Capacity 300 Sight Range 17 Robot Scan Range 34 Terrain Scan Range 24 Terrain Scan Density 510 Armor Coverage 1200 Resistance: KI 20 Resistance: EX 90 Resistance: EM 90 Weapon Cycling 25 Evasion (%) 44 Targeting Accuracy 12 Core Analysis 10 Armor Integrity Analysis 33 Offensive Hacking 15 Defensive Hacking 10 Relay Coupler Types 64 Relay Coupler Value 1 Item Schematics ----------------- Exp. Sensor Array | -9/Materials | Scanalyzed Wheel | -9/Materials | Scanalyzed Seismic Analyzer | -9/Materials | Extracted Visual Processing Unit | -9/Materials | Extracted Disposable Heat Sink | -9/Materials | Extracted Lgt. EM Pulse Cannon | -9/Materials | Extracted Sml. Matter Pod | -9/Materials | Extracted Maul | -9/Materials | Extracted Armor Integrity Analyzer | -9/Materials | Extracted Hover Unit | -9/Materials | Extracted Imp. Light Cannon | -9/Materials | Extracted Weight Redist. System | -9/Materials | Extracted Flail | -9/Materials | Extracted Cld. Ion Engine | -9/Materials | Scanalyzed Imp. Assault Rifle | -9/Materials | Scanalyzed Adv. Weapon Cycler | -8/Materials | Scanalyzed Exp. Heat Sink | -8/Materials | Scanalyzed Exp. Targeting Computer | -8/Materials | Scanalyzed Adv. Core Analyzer | -8/Materials | Scanalyzed Imp. EM Shotgun | -8/Materials | Scanalyzed Arm. Wheel | -8/Materials | Scanalyzed Shield Generator | -8/Materials | Scanalyzed Hacking Suite | -8/Materials | Hacked Plasma Cutter | -8/Materials | Hacked Shock Rifle | -8/Recycling | Hacked Powered Armor | -6/Factory | Hacked Combat Drone Bay | -6/Data Miner | Free Lgt. Regenerative Plating | -6/Data Miner | Free Exp. Cesium-ion Thruster | -6/Data Miner | Free Exp. Terrain Scan Processor | -6/Data Miner | Free Tactical Coordination Suite | -6/Data Miner | Free Exp. ECM Suite | -6/Data Miner | Free Cloaking Device | -6/Data Miner | Free Plasma Lance | -5/Factory | Scanalyzed Imp. Energy Well | -5/Factory | Scanalyzed Robot Schematics ------------------ M-13 Machinist | -10/Materials | Hacked S-27 Virus | -6/Data Miner | Free G-50 Soldier | -6/Data Miner | Free H-66 Slayer | -6/Data Miner | Free I-36 Angel | -6/Data Miner | Free Fabricated ------------ M-13 Machinist | x1 | -6/Factory Cld. Ion Engine | x1 | -6/Factory Alien Tech Used ----------------- None Achievements -------------- None Challenges ------------ None RPGLIKE | -11 -10 -10 -9 -9 -9 -8 -8 -8 -8 -8 -8 -6 -6 -6 -6 -6 -6 -5 -5 -5 --------- Run | Scr Mat Min Mat Min Exi Min Mat Gar Sto Gar Rec Fac Was Fac Low Low Dat Pro Fac Gar Levels Raised 21 | . 4 1 5 . . 1 2 . 1 1 . 3 . . 1 . . 1 1 . XP Earned 35462 | 3000 6323 1455 7766 697 80 493 3342 707 875 857 389 4195 71 804 800 119 152 1822 734 781 XP Spent 33970 | 2800 6045 1650 7300 . . . 2300 . 2600 1750 . 2000 2900 455 . . . 3200 970 . Upgrades 48 | 9 15 2 6 . . . 1 . 1 1 . 1 1 4 . . . 1 6 . Power Slot 2 | . 1 . 1 . . . . . . . . . . . . . . . . . Propulsion Slot 1 | 1 . . . . . . . . . . . . . . . . . . . . Utility Slot 10 | 1 3 . 2 . . . 1 . 1 . . . 1 . . . . 1 . . Weapon Slot 2 | 1 . . 1 . . . . . . . . . . . . . . . . . Core Integrity 9 | . 4 . . . . . . . . . . . . 1 . . . . 4 . Heat Dissipation 3 | . 3 . . . . . . . . . . . . . . . . . . . Inventory Capacity 8 | 2 2 1 1 . . . . . . 1 . 1 . . . . . . . . Sight Range 1 | 1 . . . . . . . . . . . . . . . . . . . . Sensor Range 2 | . 2 . . . . . . . . . . . . . . . . . . . Terrain Scan Density 5 | 1 . . . . . . . . . . . . . 3 . . . . 1 . Ranged Accuracy 1 | . . . . . . . . . . . . . . . . . . . 1 . Hack Attack % 2 | 1 . 1 . . . . . . . . . . . . . . . . . . Hack Defense % 2 | 1 . . 1 . . . . . . . . . . . . . . . . . Protomatter Created 3519 | . 363 24 892 52 18 . 955 140 228 183 . 282 66 55 6 11 . . . 244 Integrity Restored 9901 | . 484 290 2089 278 15 . 2346 196 447 450 30 1490 468 301 271 24 . 186 192 344 Core 5810 | . 290 188 1587 160 15 . 1413 143 190 385 30 724 . 4 176 24 . 186 87 208 Parts 4091 | . 194 102 502 118 . . 933 53 257 65 . 766 468 297 95 . . . 105 136 Protomatter Decayed 1126 | . 98 3 194 . . . 90 81 128 39 80 59 260 66 . . . 28 . . Game ------ Seed EtherialHackingNeutralizer Manual? 0 Play Time 03:48:29 Cumulative 441.6 hours Start 2020.12.30 @ 01:14:16 End 2020.12.30 @ 11:51:32 Sessions 3 Manual Loads 0 Difficulty Rogue Special Mode Winter2019/RPGLIKE Game No. 166 Rogue 163 Adventurer 3 Explorer 0 Win Type - Total 8 Types 5/1/0/1/0/1/0/0/0 Lore% 91 Gallery% 94 Achievement% 78 Wizard Run 0 Options --------- ASCII 0 Keyboard 0 Movement Numpad Keybinds 0 Fullscreen 1 Font 18/SmallcapsGlow Map View 76x50 Tactical HUD 1 Map Filters NONE Filters NONE Steam 1 RUN: 242200c8-7749-411e-a221-244a199a4a71